bitfinex-derivatives/quotes_ETHF0:USTF0_20250320
["timestamp","ask_amount","ask_price","bid_price","bid_amount"]
[1742470585411,5.58522,1992.8,1992.7,1.3809]
[1742470587002,2.33022,1992.8,1992.7,1.3809]
[1742470588012,1.00409,1992.6,1992.5,50.59991]
[1742470589416,1.00409,1992.6,1992.5,52.02671]
[1742470590416,1.00409,1992.6,1992.5,51.0226]
[1742470591010,1.00409,1992.6,1992.3,7.63413502]
[1742470591011,1.00419,1992.4,1992.3,3.21532502]
[1742470591206,1.00419,1992.4,1992.3,1.34362502]
[1742470591411,4.26219,1992.4,1992.3,1.34362502]
[1742470591720,5.60419,1992.4,1992.3,0.00752502]
[1742470594822,1.00448,1991.9,1991.8,1.00446]
[1742470595013,1.00448,1991.9,1991.8,2.38236]
[1742470595515,1.00448,1991.9,1991.8,1.3779]
[1742470595722,1.00448,1991.9,1991.8,2.38239]
[1742470598022,2.38968,1991.9,1991.8,2.38239]
[1742470598223,3.26352502,1992.0,1991.9,1.00444]
[1742470598425,5.65315502,1992.0,1991.9,2.32874]
[1742470599122,5.65315502,1992.0,1991.9,1.3243]
[1742470599323,5.65315502,1992.0,1991.9,2.32874]
[1742470602023,2.39715502,1992.0,1991.9,2.32874]
[1742470603320,2.39715502,1992.0,1991.9,1.3243]
[1742470607825,2.39715502,1992.0,1991.9,2.007]
[1742470610128,2.39715502,1992.0,1991.9,1.3243]
[1742470616831,1.01195502,1992.0,1991.9,2.32874]
[1742470619734,0.00752502,1992.0,1991.9,2.32874]
[1742470621252,1.01191502,1992.0,1991.9,2.32874]
[1742470621632,0.00752502,1992.0,1991.9,2.32874]
[1742470622033,0.00752502,1992.0,1991.9,11.27554]
[1742470622329,0.7066,1992.7,1992.6,1.00409]
[1742470622527,1.00399,1992.8,1992.7,1.00404]
[1742470623243,2.42179,1992.8,1992.7,1.00404]
[1742470623838,1.4178,1992.8,1992.7,1.00404]
[1742470624035,0.00752502,1992.9,1992.8,1.00399]
[1742470624635,0.00752502,1992.9,1992.8,3.12719]
[1742470624940,1.0038,1993.2,1993.1,1.00384]
[1742470625136,3.2078,1993.3,1993.2,1.00379]
[1742470625339,5.96,1993.8,1993.4,1.00364]
[1742470625340,1.68702,1993.6,1993.4,1.00364]
[1742470625543,1.00365,1993.5,1993.4,1.00366]
[1742470625733,0.6834,1993.6,1993.3,1.00371]
[1742470625734,1.00369,1993.4,1993.3,1.00371]
[1742470625933,1.00369,1993.4,1993.3,1.01123502]
[1742470626137,2.30226,1993.5,1993.4,1.00369]
[1742470626440,2.30226,1993.5,1993.4,2.43119]
[1742470626635,1.2986,1993.5,1993.4,2.43119]
[1742470627345,0.00747998,1993.6,1993.5,1.00364]
[1742470627747,1.00364,1993.5,1993.4,1.4275]
[1742470627951,2.34064,1993.5,1993.4,1.4275]
[1742470628244,2.34064,1993.5,1993.3,0.00752502]
[1742470628245,1.00369,1993.4,1993.3,0.00752502]
[1742470628442,6.20439,1993.4,1993.3,0.00752502]
[1742470628644,1.00384,1993.1,1993.0,1.3516]
[1742470628839,2.50946,1993.3,1993.0,1.3516]
[1742470628840,3.246,1993.2,1993.0,1.3516]
[1742470629047,2.3408,1993.2,1993.1,1.00384]
[1742470629247,1.337,1993.2,1993.1,1.00384]
[1742470629744,1.00374,1993.3,1993.2,1.00375]
[1742470629938,1.4081,1993.3,1993.2,1.00375]
[1742470630341,1.00374,1993.3,1993.2,1.00375]
[1742470630642,3.06773,1993.4,1993.3,1.00374]
[1742470630847,1.00375,1993.3,1993.2,1.00376]
[1742470631440,2.064,1993.4,1993.3,1.00374]
[1742470631641,9.212,1993.5,1993.4,1.00369]
[1742470631840,4.6601,1993.5,1993.3,1.00372]
[1742470632040,4.21888998,1993.6,1993.2,2.50945]
[1742470632443,5.57168998,1993.6,1993.5,1.00364]
[1742470632649,5.57168998,1993.6,1993.4,1.00365]
[1742470632842,1.00364,1993.5,1993.4,1.00365]
[1742470633042,5.57169998,1993.6,1993.4,1.00365]
[1742470633246,1.3528,1993.5,1993.4,1.00365]
[1742470634251,3.21527998,1993.6,1993.5,1.00364]
[1742470634552,5.57166998,1993.6,1993.5,1.00364]
[1742470634849,0.00747998,1993.6,1993.5,1.00364]
[1742470635542,0.00747998,1993.6,1993.5,4.21144]
[1742470636746,0.00747998,1993.6,1993.5,7.46044]
[1742470638140,3.18843,1994.3,1993.6,2.50897]
[1742470638141,1.3908,1994.2,1993.6,2.50897]
[1742470638443,7.1421,1994.3,1993.8,2.50872]
[1742470638643,1.3071,1994.2,1994.1,1.00333]
[1742470639049,1.3071,1994.2,1994.0,1.00334]
[1742470639250,1.00333,1994.1,1994.0,1.01086502]
[1742470639453,1.00333,1994.1,1994.0,0.00752502]
[1742470641448,1.3071,1994.1,1994.0,1.01091502]
[1742470641647,0.68782502,1994.3,1994.0,0.00752502]
[1742470641956,1.00328,1994.2,1994.1,3.259]
[1742470642258,1.00332,1994.2,1994.0,1.01090502]
[1742470642448,1.3988,1994.1,1994.0,1.01090502]
[1742470643143,2.40213,1994.1,1994.0,0.00752502]
[1742470643849,1.3988,1994.1,1994.0,1.01091502]
[1742470644247,2.40213,1994.1,1994.0,0.00752502]
[1742470644447,1.3988,1994.1,1994.0,1.01091502]
[1742470644850,2.40213,1994.1,1994.0,0.00752502]
[1742470645049,1.3988,1994.1,1994.0,1.01091502]
[1742470646452,2.40213,1994.1,1994.0,0.00752502]
[1742470646659,1.00349,1993.8,1993.6,49.5898]
[1742470646857,1.00347,1993.9,1993.7,2.42042]
[1742470647166,1.00347,1993.9,1993.8,1.00349]
[1742470647461,1.00347,1993.9,1993.8,1.4169]
[1742470647462,1.00344,1993.9,1993.8,1.4169]
[1742470648161,3.9698,1994.0,1993.8,1.4169]
[1742470648548,3.9698,1994.0,1993.7,0.00752502]
[1742470648764,1.00349,1993.8,1993.7,1.32872502]
[1742470649060,1.00349,1993.8,1993.7,0.00752502]
[1742470649762,4.26949,1993.8,1993.7,0.00752502]
[1742470650955,2.50905,1993.6,1993.1,47.37282]
[1742470651263,1.00371,1993.4,1993.2,2.36366]
[1742470651462,4.27061,1993.6,1993.3,1.3599]
[1742470651760,4.27062,1993.6,1993.3,1.3599]
[1742470651963,3.267,1993.6,1993.5,1.00364]
[1742470652156,7.48131,1993.8,1993.7,1.00354]
[1742470652464,6.4798,1994.0,1993.8,1.00345]
[1742470652652,4.21122,1994.0,1993.8,1.00345]
[1742470652857,4.21119,1994.0,1993.9,1.3599]
[1742470653458,3.2078,1994.0,1993.5,4.594]
[1742470653761,1.00354,1993.7,1993.6,1.3599]
[1742470653961,3.273,1993.9,1993.6,1.3599]
[1742470654152,3.273,1993.9,1993.7,1.00349]
[1742470654356,4.27648,1993.9,1993.8,1.333]
[1742470654758,1.00348,1993.9,1993.8,1.333]
[1742470654960,3.8757,1994.0,1993.9,1.00344]
[1742470655259,3.2078,1994.0,1993.9,1.00344]
[1742470655563,4.21123,1994.0,1993.9,1.00344]
[1742470656159,4.21119,1994.0,1993.9,1.00344]
[1742470656356,0.00752502,1994.3,1993.9,6.4968]
[1742470656557,1.00333,1994.2,1994.0,2.33635]
[1742470656862,1.00333,1994.2,1994.1,1.333]
[1742470657059,3.288,1994.2,1993.8,46.371]
[1742470657258,1.00339,1994.0,1993.9,1.2997]
[1742470658158,1.00338,1994.1,1993.9,2.3031]
[1742470658361,1.00338,1994.1,1994.0,1.2997]
[1742470658964,1.00344,1993.9,1993.8,46.371]
[1742470659659,1.00344,1993.9,1993.8,47.37449]
[1742470659858,1.00344,1993.9,1993.8,46.371]
[1742470660261,1.00344,1993.9,1993.8,47.7404]
[1742470660659,1.00344,1993.9,1993.8,48.74389]
[1742470660963,1.00344,1993.9,1993.8,47.7404]
[1742470661265,0.6981,1994.0,1993.9,1.00344]
[1742470661566,1.70149,1994.0,1993.9,1.3694]
[1742470661766,1.00339,1994.0,1993.9,1.3694]
[1742470661966,1.00339,1994.0,1993.9,2.37284]
[1742470662462,1.00339,1994.0,1993.9,1.3694]
[1742470663160,1.66769,1994.0,1993.9,1.3694]
[1742470663363,1.00344,1993.9,1993.8,46.371]
[1742470663567,1.00344,1993.9,1993.8,47.7815]
[1742470663766,1.00344,1993.9,1993.8,46.371]
[1742470664561,1.00354,1993.7,1993.6,1.4105]
[1742470665168,1.00369,1993.4,1993.3,50.58502502]
[1742470665368,1.00367,1993.5,1993.4,1.00368]
[1742470665674,2.37012,1993.6,1993.5,1.00364]
[1742470665965,2.37009,1993.6,1993.5,1.00364]
[1742470666474,1.00356,1993.7,1993.6,1.00359]
[1742470667164,1.00359,1993.6,1993.5,3.02082]
[1742470667558,1.00359,1993.6,1993.5,6.22862]
[1742470667759,1.00359,1993.6,1993.5,6.22864]
[1742470668372,2.35488,1993.7,1993.6,1.00359]
[1742470668563,2.35488,1993.7,1993.6,2.32279]
[1742470668759,2.35488,1993.7,1993.6,1.3192]
[1742470669963,1.00358,1993.7,1993.6,1.3192]
[1742470670159,2.38451,1993.8,1993.6,1.3192]
[1742470670364,3.2078,1994.0,1993.7,1.0035]
[1742470670561,4.5888,1994.0,1993.8,1.3665]
[1742470670874,1.3726,1994.1,1994.0,1.00339]
[1742470671173,3.21532502,1994.3,1994.2,1.00328]
[1742470671367,0.00752502,1994.3,1994.2,1.00328]
[1742470671562,1.00329,1994.2,1994.1,1.0033]
[1742470671768,1.38852502,1994.3,1994.2,1.00328]
[1742470671963,0.00752502,1994.3,1994.2,1.00328]
[1742470672169,1.01075502,1994.3,1994.2,1.00328]
[1742470672471,0.00752502,1994.3,1994.2,2.33358]
[1742470672970,1.01075502,1994.3,1994.2,2.33358]
[1742470673466,0.00752502,1994.3,1994.2,2.33358]
[1742470674258,1.01075502,1994.3,1994.2,1.3303]
[1742470674461,2.37715502,1994.3,1994.2,1.3303]
[1742470674865,5.68415502,1994.3,1994.2,1.3303]
[1742470676570,1.00339,1994.0,1993.9,3.2078]
[1742470676873,1.00339,1994.0,1993.9,4.21124]
[1742470677268,1.00339,1994.0,1993.9,3.2078]
[1742470678465,2.50861,1993.9,1993.4,9.1678]
[1742470678673,1.00356,1993.7,1993.6,1.00358]
[1742470678969,1.00353,1993.8,1993.6,0.6505]
[1742470679272,1.00354,1993.7,1993.6,1.65405]
[1742470679470,4.7268,1993.9,1993.7,1.00353]
[1742470679670,1.00345,1993.9,1993.8,1.00344]
[1742470680469,1.00352,1993.8,1993.7,1.00352]
[1742470681071,1.00346,1993.9,1993.8,1.00346]
[1742470681466,1.0035,1993.8,1993.7,1.0035]
[1742470682477,1.00336,1994.1,1994.0,1.00337]
[1742470682672,1.0034,1994.0,1993.9,3.2078]
[1742470683771,1.00354,1993.7,1993.6,0.6505]
[1742470684371,1.00354,1993.7,1993.6,1.65409]
[1742470684567,2.37544,1993.7,1993.6,1.65409]
[1742470685281,2.37544,1993.7,1993.6,0.6505]
[1742470685580,1.00359,1993.6,1993.5,3.2078]
[1742470685781,2.37549,1993.6,1993.5,3.2078]
[1742470685975,2.37549,1993.6,1993.5,4.21144]
[1742470686478,1.00364,1993.5,1993.4,1.00366]
[1742470686676,1.3719,1993.5,1993.4,1.00364]
[1742470687178,1.00354,1993.7,1993.6,1.00359]
[1742470687568,2.39814,1993.7,1993.6,1.00359]
[1742470687774,1.3946,1993.7,1993.6,1.00359]
[1742470688075,1.0036,1993.6,1993.5,1.0036]
[1742470688276,1.00365,1993.5,1993.4,1.00366]
[1742470688480,2.39827,1993.5,1993.4,1.00369]
[1742470688677,3.2078,1993.8,1993.5,2.50904]
[1742470688869,2.0696,1994.0,1993.7,3.2078]
[1742470689076,2.39804,1993.9,1993.8,1.00345]
[1742470689774,1.3946,1993.9,1993.8,1.00345]
[1742470689977,0.675,1994.0,1993.9,1.00344]
[1742470690483,1.4225,1994.1,1994.0,1.00339]
[1742470690681,2.42583,1994.1,1994.0,1.00339]
[1742470691075,1.0034,1994.0,1993.9,1.00341]
[1742470691276,2.42588,1994.1,1994.0,1.00339]
[1742470691476,2.42583,1994.1,1994.0,1.00339]
[1742470691782,1.00341,1994.0,1993.9,1.0034]
[1742470691976,1.00346,1993.9,1993.8,1.00345]
[1742470692183,2.42593,1994.0,1993.9,1.00344]
[1742470692979,2.42593,1994.0,1993.7,3.2078]
[1742470692980,1.00345,1993.9,1993.8,1.00345]
[1742470693678,1.00337,1994.1,1994.0,1.00339]
[1742470693887,1.311,1994.1,1994.0,1.00339]
[1742470694085,0.664,1994.2,1994.1,1.00333]
[1742470694583,1.66728,1994.2,1994.1,1.00333]
[1742470695581,1.66728,1994.2,1994.1,2.34523]
[1742470696180,1.66728,1994.2,1994.1,1.3419]
[1742470696685,3.06388,1994.2,1994.1,1.3419]
[1742470699182,6.38088,1994.2,1994.1,1.3419]
[1742470700392,3.06388,1994.2,1994.1,1.3419]
[1742470700782,3.06388,1994.2,1994.1,2.34523]
[1742470700982,2.0606,1994.2,1994.1,2.34523]
[1742470701281,0.664,1994.2,1994.1,2.34523]
[1742470701688,2.0909,1994.2,1994.1,2.34523]
[1742470701986,0.664,1994.2,1994.1,2.34523]
[1742470702490,0.00752502,1994.3,1994.2,1.00328]
[1742470702682,1.36542502,1994.3,1994.2,1.00328]
[1742470702886,1.00328,1994.2,1994.1,2.3452]
[1742470703689,1.36542502,1994.3,1994.2,1.00328]
[1742470703887,2.36865502,1994.3,1994.2,2.42168]
[1742470704082,3.06895502,1994.3,1994.2,1.4184]
[1742470704484,3.06895502,1994.3,1994.2,2.42168]
[1742470706087,2.06572502,1994.3,1994.2,2.42168]
[1742470707287,5.01438,1995.1,1994.5,1.00311]
[1742470707288,13.59103281,1994.9,1994.5,1.00311]
[1742470707490,1.9646,1994.8,1994.4,3.2078]
[1742470707695,1.00313,1994.5,1994.4,3.2078]
[1742470707990,1.00313,1994.5,1994.1,50.3295]
[1742470707991,1.00323,1994.3,1994.2,40.8]
[1742470708296,2.6241,1994.4,1994.1,49.678]
[1742470708493,2.35647,1994.3,1994.1,47.36431]
[1742470708795,1.3532,1994.2,1994.1,47.37183502]
[1742470708991,1.00324,1994.3,1994.2,1.00325]
[1742470709194,1.00324,1994.3,1994.1,46.36852502]
[1742470709195,2.35643,1994.3,1994.1,47.37182502]
[1742470709489,1.00328,1994.2,1994.1,46.36852502]
[1742470709695,2.35648,1994.2,1994.1,46.36852502]
[1742470710590,2.32522502,1994.4,1994.3,1.00323]
[1742470710797,2.32522502,1994.4,1994.1,46.36852502]
[1742470710798,1.00325,1994.3,1994.1,46.36852502]
[1742470710986,1.00328,1994.2,1994.1,47.37182502]
[1742470711390,1.00328,1994.2,1994.1,46.36852502]
[1742470711794,1.00328,1994.2,1994.1,47.37185502]
[1742470711993,1.00328,1994.2,1994.1,46.36852502]
[1742470712195,1.3532,1994.3,1994.1,46.36852502]
[1742470712396,1.32202502,1994.4,1994.3,1.00323]
[1742470712701,2.66862502,1994.4,1994.3,1.00323]
[1742470713197,0.66252502,1994.4,1994.3,1.00323]
[1742470713705,1.66570502,1994.4,1994.3,1.00323]
[1742470714599,1.00323,1994.3,1994.2,4.21107]
[1742470714904,1.66574502,1994.4,1994.2,1.00324]
[1742470715298,1.66574502,1994.4,1994.3,1.00323]
[1742470715904,0.66252502,1994.4,1994.3,1.00323]
[1742470716295,0.66252502,1994.4,1994.1,46.36852502]
[1742470716496,1.66573502,1994.4,1994.2,1.00328]
[1742470716695,1.00327,1994.3,1994.1,47.37181502]
[1742470716895,2.33817,1994.3,1994.2,1.00328]
[1742470717503,1.3349,1994.3,1994.2,1.00328]
[1742470717899,1.66574502,1994.4,1994.2,1.00328]
[1742470718098,2.98134502,1994.4,1994.2,1.00328]
[1742470718299,2.98134502,1994.4,1994.1,46.36852502]
[1742470718499,2.98134502,1994.4,1994.2,1.00325]
[1742470718702,1.00323,1994.3,1994.2,1.00325]
[1742470719294,1.00323,1994.3,1994.1,46.36852502]
[1742470719497,1.00328,1994.2,1994.1,46.36852502]
[1742470719702,1.66138,1994.2,1994.1,46.36852502]
[1742470720598,1.66138,1994.2,1994.1,0.00752502]
[1742470720799,1.66138,1994.2,1994.1,1.01085502]
[1742470722109,0.6581,1994.2,1994.1,1.01085502]
[1742470722506,1.00326,1994.3,1994.2,1.00328]
[1742470722706,1.3899,1994.3,1994.2,1.00328]
[1742470722903,1.30972502,1994.4,1994.3,1.00323]
[1742470723102,0.00752502,1994.4,1994.3,1.00323]
[1742470723711,1.00323,1994.3,1994.2,49.05384]
[1742470724011,2.41883,1994.3,1994.2,3.2078]
[1742470724210,2.41883,1994.3,1994.2,4.21108]
[1742470724412,2.41883,1994.3,1994.2,1.00328]
[1742470724712,1.00328,1994.2,1994.1,0.00752502]
[1742470724910,3.06378,1994.2,1994.1,1.01085502]
[1742470725212,3.06378,1994.2,1994.1,0.00752502]
[1742470725707,3.06378,1994.2,1994.1,2.36255502]
[1742470725914,2.0605,1994.2,1994.1,2.36255502]
[1742470726211,3.06378,1994.2,1994.1,2.36255502]
[1742470727114,3.06378,1994.2,1994.1,1.35922502]
[1742470729510,3.06378,1994.2,1994.1,2.36255502]
[1742470729912,3.06378,1994.2,1994.1,1.35922502]
[1742470732412,3.06378,1994.2,1994.1,2.36255502]
[1742470732614,2.0605,1994.2,1994.1,2.36255502]
[1742470732915,1.64818,1994.2,1994.1,2.36255502]
[1742470733312,0.6449,1994.2,1994.1,2.36255502]
[1742470733512,1.64818,1994.2,1994.1,1.35922502]
[1742470734509,2.95658,1994.2,1994.1,1.35922502]
[1742470736414,0.6449,1994.2,1994.1,1.35922502]
[1742470736615,1.00327,1994.3,1994.2,1.00328]
[1742470736813,1.00328,1994.2,1994.1,1.35922502]
[1742470737012,1.00328,1994.2,1994.1,2.36254502]
[1742470737510,1.00328,1994.2,1994.1,1.35922502]
[1742470741222,1.00328,1994.2,1994.1,0.00752502]
[1742470741223,2.40128,1994.2,1994.1,0.00752502]
[1742470742722,1.00349,1993.8,1993.7,49.5638]
[1742470743420,1.00359,1993.6,1993.5,3.2078]
[1742470743618,1.00374,1993.3,1993.2,62.22584056]
[1742470743813,1.3481,1993.5,1993.3,1.0037]
[1742470744016,1.0037,1993.4,1993.3,2.3821]
[1742470744418,1.0037,1993.4,1993.3,1.3784]
[1742470744618,2.3922,1993.4,1993.3,1.3784]
[1742470745020,1.3885,1993.4,1993.3,1.3784]
[1742470745210,1.67745,1993.5,1993.4,1.00369]
[1742470745715,1.00369,1993.4,1993.3,5.58991]
[1742470745919,1.00369,1993.4,1993.3,3.2078]
[1742470746126,1.00369,1993.4,1993.3,1.00374]
[1742470746624,0.6738,1993.5,1993.2,47.0622]
[1742470746824,1.00372,1993.4,1993.3,1.00373]
[1742470747227,1.67748,1993.5,1993.4,1.00369]
[1742470747726,0.6738,1993.5,1993.2,48.06596]
[1742470747927,1.00373,1993.4,1993.3,1.00374]
[1742470748125,1.67744,1993.5,1993.4,1.00369]
[1742470748426,1.00369,1993.4,1993.3,4.2115]
[1742470748826,1.67747,1993.5,1993.4,1.00369]
[1742470749529,1.67744,1993.5,1993.4,1.00369]
[1742470749727,0.6738,1993.5,1993.4,1.00369]
[1742470750519,1.67744,1993.5,1993.4,1.00369]
[1742470751231,0.6738,1993.5,1993.4,1.00369]
[1742470751818,1.67744,1993.5,1993.4,1.00369]
[1742470752021,1.00369,1993.4,1993.3,4.21151]
[1742470752230,1.67747,1993.5,1993.4,1.00369]
[1742470753227,0.6738,1993.5,1993.4,1.00369]
[1742470754030,1.00369,1993.4,1993.3,4.21152]
[1742470754425,1.67748,1993.5,1993.4,1.00369]
[1742470754631,0.6738,1993.5,1993.4,1.00369]
[1742470754819,1.00369,1993.4,1993.3,4.21151]
[1742470755323,1.67747,1993.5,1993.4,1.00369]
[1742470755524,0.6738,1993.5,1993.4,1.00369]
[1742470755733,1.67744,1993.5,1993.4,1.00369]
[1742470755933,0.6738,1993.5,1993.4,1.00369]
[1742470757035,4.32256,1993.7,1993.3,5.71711]
[1742470757333,1.00359,1993.6,1993.3,5.71711]
[1742470757535,1.00359,1993.6,1993.5,1.00364]
[1742470757728,5.3277,1993.7,1993.3,9.02111]
[1742470757927,6.33128,1993.7,1993.6,1.00359]
[1742470758545,1.0036,1993.6,1993.5,1.0036]
[1742470759759,1.00365,1993.5,1993.4,1.00365]
[1742470760230,2.34673,1993.6,1993.5,1.00364]
[1742470761132,1.00369,1993.4,1993.3,6.5118]
[1742470761533,1.00369,1993.4,1993.3,3.2078]
[1742470761728,1.00374,1993.3,1993.2,46.359]
[1742470761931,2.94244,1993.3,1993.2,46.359]
[1742470762238,1.00379,1993.2,1993.1,0.00752502]
[1742470762435,2.95629,1993.2,1993.1,0.00752502]
[1742470763640,1.00394,1992.9,1992.8,3.2078]
[1742470764032,1.00394,1992.9,1992.8,4.21179]
[1742470764227,2.29022,1993.0,1992.9,1.00394]
[1742470764431,1.00394,1992.9,1992.8,4.21176]
[1742470764632,1.9308,1992.9,1992.8,4.21176]
[1742470765040,1.0039,1993.0,1992.9,1.00392]
[1742470765238,2.2902,1993.0,1992.9,1.00392]
[1742470765540,4.95336,1993.1,1993.0,1.00389]
[1742470765739,1.00389,1993.0,1992.9,2.42051]
[1742470766037,4.95337,1993.1,1993.0,1.00389]
[1742470766434,3.9495,1993.1,1992.9,1.0039]
[1742470766643,1.3642,1993.0,1992.9,1.0039]
[1742470766841,0.6706,1993.0,1992.9,1.0039]
[1742470767041,2.36802,1993.2,1992.8,6.5118]
[1742470767247,1.00386,1993.1,1992.9,0.6792]
[1742470767539,2.36806,1993.1,1993.0,1.00388]
[1742470767843,1.3642,1993.1,1992.9,1.00393]
[1742470768044,1.3642,1993.0,1992.9,1.00393]
[1742470768541,1.00384,1993.1,1993.0,1.00386]
[1742470768742,2.36804,1993.1,1993.0,2.78835582]
[1742470768938,2.36804,1993.1,1993.0,1.78449582]
[1742470769138,2.36804,1993.1,1993.0,2.78838582]
[1742470769842,2.36804,1993.1,1993.0,1.00389]
[1742470770046,1.0039,1993.0,1992.9,1.00392]
[1742470770244,1.3387,1993.0,1992.9,1.00392]
[1742470772041,0.6706,1993.2,1993.1,1.00384]
[1742470772237,2.0093,1993.2,1993.1,1.00384]
[1742470772442,0.6706,1993.2,1993.1,1.00384]
[1742470772841,1.67439,1993.2,1993.1,1.00384]
[1742470773041,3.08369,1993.2,1993.1,1.00384]
[1742470773348,2.0799,1993.2,1993.1,1.00384]
[1742470773546,3.08369,1993.2,1993.1,1.00384]
[1742470774043,1.00386,1993.1,1993.0,1.00388]
[1742470774241,1.4093,1993.1,1992.9,1.0039]
[1742470774441,1.00389,1993.0,1992.9,1.0039]
[1742470774640,2.41317,1993.1,1992.8,6.5118]
[1742470774844,2.41317,1993.1,1993.0,1.00389]
[1742470775338,1.4093,1993.1,1993.0,1.00389]
[1742470775746,1.6744,1993.2,1993.1,1.00384]
[1742470775946,3.044,1993.2,1993.1,1.00384]
[1742470776451,1.00384,1993.1,1992.9,1.00392]
[1742470776748,2.37344,1993.1,1992.9,1.00392]
[1742470776955,2.37348,1993.1,1992.8,6.5118]
[1742470777252,2.37349,1993.1,1992.9,1.00392]
[1742470777549,1.3696,1993.1,1992.8,7.51575]
[1742470777742,2.0325,1993.0,1992.8,7.51575]
[1742470777938,1.3696,1992.9,1992.8,7.51575]
[1742470778549,2.37354,1992.9,1992.8,6.5118]
[1742470778853,2.37354,1992.9,1992.8,7.50279]
[1742470779146,2.37354,1992.9,1992.8,3.2078]
[1742470779548,1.3696,1992.9,1992.7,47.38354502]
[1742470779850,1.9731,1992.8,1992.7,47.38354502]
[1742470782652,1.9731,1992.8,1992.7,47.38356502]
[1742470784149,0.6446,1992.8,1992.7,47.38356502]
[1742470784545,1.66681,1993.0,1992.9,1.00394]
[1742470784751,0.6629,1993.0,1992.8,4.90215]
[1742470785052,1.66681,1993.0,1992.9,1.00394]
[1742470785255,2.99661,1993.0,1992.9,1.00394]
[1742470785453,1.00394,1992.9,1992.8,4.90216]
[1742470785652,1.00394,1992.9,1992.8,3.2078]
[1742470786650,1.00394,1992.9,1992.8,2.1364]
[1742470786849,2.33374,1992.9,1992.8,2.1364]
[1742470787656,2.33374,1992.9,1992.8,3.5015]
[1742470788849,2.33374,1992.9,1992.8,1.3651]
[1742470789054,1.00399,1992.8,1992.7,47.74462502]
[1742470789255,2.36839,1992.8,1992.7,47.74462502]
[1742470790953,5.64539,1992.8,1992.7,1.37262502]
[1742470792657,5.64539,1992.8,1992.7,0.00752502]
[1742470793552,5.64539,1992.8,1992.7,1.39992502]
[1742470793952,6.38048,1993.0,1992.9,1.00394]
[1742470793953,1.6668,1993.0,1992.9,1.00394]
[1742470794159,1.65537,1993.1,1993.0,1.00389]
[1742470794358,3.02067,1993.1,1993.0,1.00389]
[1742470794554,4.86942,1993.2,1993.1,1.00384]
[1742470794852,5.2309,1993.2,1993.0,1.00389]
[1742470795056,1.3653,1993.1,1993.0,1.00389]
[1742470795257,2.36919,1993.1,1993.0,1.00389]
[1742470795453,1.3653,1993.1,1993.0,1.00389]
[1742470795661,4.86939,1993.2,1993.1,1.00384]
[1742470795857,6.23469,1993.2,1993.1,1.00384]
[1742470796057,3.02689,1993.2,1993.1,1.00384]
[1742470796258,1.00389,1993.1,1993.0,1.00387]
[1742470796454,1.00389,1993.1,1993.0,1.00389]
[1742470796659,1.00391,1993.0,1992.9,1.0039]
[1742470796855,2.36917,1993.1,1993.0,1.00389]
[1742470797057,2.36919,1993.1,1993.0,1.00389]
[1742470797461,1.0039,1993.0,1992.9,1.0039]
[1742470798265,2.36919,1993.1,1993.0,1.00389]
[1742470799369,0.6578,1993.2,1993.1,1.00384]
[1742470799565,1.0038,1993.2,1992.9,5.71765]
[1742470799867,1.0038,1993.2,1993.1,1.00379]
[1742470800367,1.0038,1993.2,1992.9,52.10565]
[1742470800368,1.00386,1993.1,1993.0,1.00386]
[1742470800562,1.00386,1993.1,1993.0,4.27886]
[1742470800867,1.00382,1993.2,1993.1,1.00382]
[1742470801170,1.00382,1993.2,1993.1,1.3512]
[1742470801368,1.00382,1993.2,1993.1,2.35504]
[1742470802769,3.14309502,1993.3,1993.1,1.3512]
[1742470802966,0.00752502,1993.3,1993.2,1.00379]
[1742470803470,0.00752502,1993.3,1993.2,4.27879]
[1742470805678,0.00752502,1993.3,1993.2,5.66049]
[1742470810679,1.01126502,1993.3,1993.2,1.3817]
[1742470811184,1.65526502,1993.3,1993.2,1.3817]
[1742470811382,1.00389,1993.0,1992.9,49.5958]
[1742470811591,1.00389,1993.0,1992.9,47.39194]
[1742470811786,1.00387,1993.1,1993.0,1.00389]
[1742470811992,8.18794,1993.2,1993.0,1.00389]
[1742470812194,8.18794,1993.2,1993.1,1.00384]
[1742470812490,1.00384,1993.1,1993.0,1.00385]
[1742470812686,1.356,1993.1,1993.0,2.40555]
[1742470813292,2.35984,1993.1,1993.0,2.40555]
[1742470813589,2.35984,1993.1,1993.0,1.4017]
[1742470815793,1.356,1993.1,1993.0,2.40559]
[1742470815994,2.35984,1993.1,1993.0,2.40559]
[1742470816298,2.35984,1993.1,1993.0,1.4017]
[1742470816497,2.35984,1993.1,1993.0,2.40559]
[1742470816796,2.35984,1993.1,1993.0,1.4017]
[1742470818699,1.00399,1992.8,1992.7,3.21532502]
[1742470819200,1.00399,1992.8,1992.7,4.21936502]
[1742470819498,4.96851,1993.0,1992.9,1.00394]
[1742470819802,3.9646,1993.0,1992.9,1.00394]
[1742470819997,0.6996,1993.0,1992.9,1.00394]
[1742470820198,2.41645,1993.1,1993.0,1.00389]
[1742470820998,1.00389,1993.0,1992.9,2.43091]
[1742470821500,1.00389,1993.0,1992.9,1.427]
[1742470822201,1.00389,1993.0,1992.9,2.43094]
[1742470823002,7.8807,1993.2,1993.0,1.00389]
[1742470823206,10.17339,1993.2,1993.1,1.402]
[1742470823511,8.88449,1993.2,1993.1,1.402]
[1742470825004,2.40869,1993.2,1993.1,1.402]
[1742470829104,2.40869,1993.2,1993.1,2.40584]
[1742470829306,2.40869,1993.2,1993.1,1.402]
[1742470831506,2.40869,1993.2,1993.1,2.40584]
[1742470831806,2.40869,1993.2,1993.1,1.402]